[Event "Late-Titled-Tuesday-Blitz-July-09-2024"]
[Site "Chess.com"]
[Date "2024.07.09"]
[Round "7"]
[White "Narek_Ghimoyan"]
[Black "bancsoo"]
[Result "0-1"]
[WhiteElo "2520"]
[BlackElo "2855"]
[TimeControl "180+1"]
[EndTime "15:17:18 PDT"]
[Termination "bancsoo won by resignation"]

1. e4 {[%clk 0:03:00.9]} 1... d6 {[%clk 0:02:59.2]} 2. d4 {[%clk 0:03:00.6]}
2... e5 {[%clk 0:02:58.8]} 3. Nf3 {[%clk 0:03:00.1]} 3... exd4 {[%clk
0:02:58.7]} 4. Nxd4 {[%clk 0:02:59.3]} 4... Nf6 {[%clk 0:02:59.2]} 5. Nc3 {[%clk
0:02:58.9]} 5... Be7 {[%clk 0:02:59.8]} 6. Bf4 {[%clk 0:02:55.7]} 6... O-O
{[%clk 0:03:00.3]} 7. Qd2 {[%clk 0:02:55.1]} 7... Nc6 {[%clk 0:03:00.7]} 8.
O-O-O {[%clk 0:02:43.2]} 8... Nxd4 {[%clk 0:03:00.9]} 9. Qxd4 {[%clk 0:02:44.1]}
9... Be6 {[%clk 0:03:01.5]} 10. f3 {[%clk 0:02:38.6]} 10... a6 {[%clk
0:03:01.6]} 11. g4 {[%clk 0:02:37.1]} 11... b5 {[%clk 0:03:01.8]} 12. h4 {[%clk
0:02:31.5]} 12... c5 {[%clk 0:03:01.5]} 13. Qd2 {[%clk 0:02:29.1]} 13... b4
{[%clk 0:03:02]} 14. Nd5 {[%clk 0:02:28]} 14... Nxd5 {[%clk 0:03:02.4]} 15. exd5
{[%clk 0:02:28.9]} 15... Bd7 {[%clk 0:03:03.1]} 16. h5 {[%clk 0:02:25.1]} 16...
Re8 {[%clk 0:03:03.3]} 17. Bd3 {[%clk 0:02:23.2]} 17... Bf8 {[%clk 0:03:02.4]}
18. g5 {[%clk 0:02:21.7]} 18... Qc8 {[%clk 0:03:02.7]} 19. g6 {[%clk 0:02:02.4]}
19... Bf5 {[%clk 0:02:54.5]} 20. gxf7+ {[%clk 0:01:37.8]} 20... Kxf7 {[%clk
0:02:54.6]} 21. Rdg1 {[%clk 0:01:34.4]} 21... c4 {[%clk 0:02:32.3]} 22. Bxf5
{[%clk 0:01:33.7]} 22... Qxf5 {[%clk 0:02:32.4]} 23. Rg5 {[%clk 0:01:33.6]}
23... Qf6 {[%clk 0:02:33]} 24. Rhg1 {[%clk 0:01:17]} 24... c3 {[%clk 0:02:16.3]}
25. Qh2 {[%clk 0:01:17]} 25... cxb2+ {[%clk 0:02:10.7]} 26. Kb1 {[%clk
0:01:17.3]} 26... Rac8 {[%clk 0:01:58.3]} 27. Qh3 {[%clk 0:01:06.4]} 27... Qc3
{[%clk 0:01:57.5]} 28. Qf5+ {[%clk 0:01:02.9]} 28... Kg8 {[%clk 0:01:53.6]} 29.
h6 {[%clk 0:00:47.6]} 29... Re1+ {[%clk 0:01:22.4]} 30. Rxe1 {[%clk 0:00:46.7]}
30... Qxe1+ {[%clk 0:01:23.3]} 31. Kxb2 {[%clk 0:00:47.2]} 31... Qc3+ {[%clk
0:01:24.2]} 32. Kb1 {[%clk 0:00:47.5]} 32... Re8 {[%clk 0:01:19.4]} 33. Rg1
{[%clk 0:00:17.8]} 33... a5 {[%clk 0:00:37.7]} 34. Bc1 {[%clk 0:00:17.7]} 34...
a4 {[%clk 0:00:33.7]} 35. Qd7 {[%clk 0:00:16.8]} 35... b3 {[%clk 0:00:30.2]} 36.
Bb2 {[%clk 0:00:08.4]} 36... Re1+ {[%clk 0:00:17.6]} 37. Rxe1 {[%clk 0:00:07.9]}
37... Qxe1+ {[%clk 0:00:18.5]} 38. Bc1 {[%clk 0:00:08.3]} 38... bxc2+ {[%clk
0:00:18.7]} 39. Kxc2 {[%clk 0:00:06]} 39... Qe2+ {[%clk 0:00:19.1]} 40. Bd2
{[%clk 0:00:06]} 40... Qxf3 {[%clk 0:00:17.6]} 41. Qe6+ {[%clk 0:00:05.7]} 41...
Qf7 {[%clk 0:00:18]} 42. hxg7 {[%clk 0:00:03.1]} 42... Bxg7 {[%clk 0:00:13.6]}
43. Qxd6 {[%clk 0:00:02.8]} 43... Qf5+ {[%clk 0:00:12.2]} 44. Kd1 {[%clk
0:00:01.5]} 44... h5 {[%clk 0:00:12.7]} 45. Qe6+ {[%clk 0:00:01.2]} 45... Qxe6
{[%clk 0:00:13]} 46. dxe6 {[%clk 0:00:02.1]} 46... Kh7 {[%clk 0:00:10.9]} 47.
Bb4 {[%clk 0:00:02.4]} 47... Kg6 {[%clk 0:00:11.4]} 48. Ke2 {[%clk 0:00:02]}
48... Be5 {[%clk 0:00:07.8]} 49. Kf3 {[%clk 0:00:02.3]} 49... Kf6 {[%clk
0:00:08.3]} 50. e7 {[%clk 0:00:02.7]} 50... Kf7 {[%clk 0:00:08.9]} 51. Kg2
{[%clk 0:00:02.9]} 51... Bf6 {[%clk 0:00:09.3]} 52. Kh3 {[%clk 0:00:03.1]} 52...
Bxe7 {[%clk 0:00:05.3]} 53. Bxe7 {[%clk 0:00:02.7]} 53... Kxe7 {[%clk 0:00:06]}
54. Kh4 {[%clk 0:00:03.5]} 54... Kd6 {[%clk 0:00:06.9]} 55. Kxh5 {[%clk
0:00:04.4]} 55... Kc5 {[%clk 0:00:07.8]} 56. Kg4 {[%clk 0:00:05.2]} 56... Kb4
{[%clk 0:00:08.5]} 57. Kf3 {[%clk 0:00:06.1]} 57... Ka3 {[%clk 0:00:09.4]} 58.
Ke2 {[%clk 0:00:07]} 58... Kxa2 {[%clk 0:00:10.1]} 59. Kd3 {[%clk 0:00:07.5]}
59... Kb2 {[%clk 0:00:10.8]} 60. Kc4 {[%clk 0:00:08.2]} 60... a3 {[%clk
0:00:11.5]} 0-1

[Event "Late-Titled-Tuesday-Blitz-July-09-2024"]
[Site "Chess.com"]
[Date "2024.07.09"]
[Round "7"]
[White "eightbyeightchess"]
[Black "dodorox"]
[Result "1-0"]
[WhiteElo "2389"]
[BlackElo "2187"]
[TimeControl "180+1"]
[EndTime "15:17:18 PDT"]
[Termination "eightbyeightchess won on time"]

1. e4 {[%clk 0:03:00.9]} 1... e6 {[%clk 0:02:59.6]} 2. d4 {[%clk 0:03:00.4]}
2... d5 {[%clk 0:03:00.2]} 3. e5 {[%clk 0:03:01.1]} 3... c5 {[%clk 0:02:59.4]}
4. c3 {[%clk 0:03:02]} 4... Nc6 {[%clk 0:02:59.5]} 5. Nf3 {[%clk 0:03:02.2]}
5... Qb6 {[%clk 0:02:59.6]} 6. Bd3 {[%clk 0:03:00.4]} 6... cxd4 {[%clk
0:02:50.9]} 7. O-O {[%clk 0:02:59.4]} 7... Bd7 {[%clk 0:02:49.2]} 8. Re1 {[%clk
0:02:50]} 8... Bc5 {[%clk 0:02:18.7]} 9. Re2 {[%clk 0:02:15.3]} 9... a5 {[%clk
0:02:10.8]} 10. Nbd2 {[%clk 0:02:09.2]} 10... dxc3 {[%clk 0:02:05.1]} 11. bxc3
{[%clk 0:02:10.1]} 11... Nh6 {[%clk 0:01:45.5]} 12. Rb1 {[%clk 0:02:06.4]} 12...
Qc7 {[%clk 0:01:30.8]} 13. c4 {[%clk 0:01:58.5]} 13... Nb4 {[%clk 0:01:19.8]}
14. Nb3 {[%clk 0:01:43.3]} 14... Nxd3 {[%clk 0:01:13.5]} 15. Qxd3 {[%clk
0:01:42.5]} 15... dxc4 {[%clk 0:01:13.2]} 16. Qe4 {[%clk 0:01:29.1]} 16... cxb3
{[%clk 0:01:10.2]} 17. Bxh6 {[%clk 0:01:29.5]} 17... gxh6 {[%clk 0:01:03.8]} 18.
axb3 {[%clk 0:01:28.9]} 18... Bc6 {[%clk 0:00:59.8]} 19. Qf4 {[%clk 0:01:28.7]}
19... Rg8 {[%clk 0:00:54.5]} 20. Rd1 {[%clk 0:01:20.9]} 20... Rd8 {[%clk
0:00:42.2]} 21. Rde1 {[%clk 0:01:17.2]} 21... Qb6 {[%clk 0:00:35.4]} 22. Nh4
{[%clk 0:01:07.5]} 22... Qb4 {[%clk 0:00:30.4]} 23. Qxh6 {[%clk 0:01:02.8]}
23... Qg4 {[%clk 0:00:14.4]} 24. g3 {[%clk 0:00:37.1]} 24... Be7 {[%clk
0:00:09.6]} 25. Ng2 {[%clk 0:00:33.1]} 25... Qf3 {[%clk 0:00:07.9]} 26. Qh3
{[%clk 0:00:32.7]} 26... Qxg2+ {[%clk 0:00:04.4]} 27. Qxg2 {[%clk 0:00:33.6]}
27... Bxg2 {[%clk 0:00:04.3]} 28. Kxg2 {[%clk 0:00:34.5]} 28... Rd3 {[%clk
0:00:04.2]} 29. Rc2 {[%clk 0:00:30.3]} 29... Kd7 {[%clk 0:00:04.4]} 30. Rec1
{[%clk 0:00:29.6]} 30... Rd8 {[%clk 0:00:03.6]} 31. Rc7+ {[%clk 0:00:29]} 31...
Ke8 {[%clk 0:00:04.2]} 32. Rxb7 {[%clk 0:00:29.9]} 32... R3d5 {[%clk 0:00:03.8]}
33. f4 {[%clk 0:00:29]} 33... Kf8 {[%clk 0:00:03]} 34. Rcc7 {[%clk 0:00:28.2]}
34... Re8 {[%clk 0:00:02]} 35. Rd7 {[%clk 0:00:27.4]} 35... Rxd7 {[%clk
0:00:01.6]} 36. Rxd7 {[%clk 0:00:28.3]} 36... Rd8 {[%clk 0:00:02.2]} 37. Ra7
{[%clk 0:00:28.6]} 37... Bb4 {[%clk 0:00:02.8]} 38. g4 {[%clk 0:00:27.7]} 38...
Rd3 {[%clk 0:00:03.2]} 39. f5 {[%clk 0:00:27.8]} 39... exf5 {[%clk 0:00:02.9]}
40. gxf5 {[%clk 0:00:28.7]} 40... Rxb3 {[%clk 0:00:03.2]} 41. f6 {[%clk
0:00:24.7]} 41... Ke8 {[%clk 0:00:02.9]} 42. e6 {[%clk 0:00:22.1]} 42... fxe6
{[%clk 0:00:02.8]} 43. Rxh7 {[%clk 0:00:23]} 43... Kf8 {[%clk 0:00:03]} 44. Ra7
{[%clk 0:00:19.7]} 44... e5 {[%clk 0:00:02.6]} 45. h4 {[%clk 0:00:19]} 45... e4
{[%clk 0:00:03.1]} 46. h5 {[%clk 0:00:16.5]} 46... Bc3 {[%clk 0:00:03.5]} 47.
Ra6 {[%clk 0:00:05.9]} 47... Kf7 {[%clk 0:00:03.3]} 48. h6 {[%clk 0:00:06.5]}
48... Bxf6 {[%clk 0:00:03.6]} 49. h7 {[%clk 0:00:06.7]} 49... Rb8 {[%clk
0:00:03]} 50. Kg3 {[%clk 0:00:06]} 50... Rh8 {[%clk 0:00:03.2]} 51. Ra7+ {[%clk
0:00:06.2]} 51... Kg6 {[%clk 0:00:02.7]} 52. Kf4 {[%clk 0:00:07.1]} 52... Rxh7
{[%clk 0:00:02.9]} 53. Rxa5 {[%clk 0:00:07]} 53... Re7 {[%clk 0:00:01.5]} 54.
Ra6 {[%clk 0:00:04.8]} 1-0

[Event "Late-Titled-Tuesday-Blitz-July-09-2024"]
[Site "Chess.com"]
[Date "2024.07.09"]
[Round "7"]
[White "GiorgianBarbosa"]
[Black "Millerkallpa"]
[Result "1-0"]
[WhiteElo "2512"]
[BlackElo "2266"]
[TimeControl "180+1"]
[EndTime "15:17:19 PDT"]
[Termination "GiorgianBarbosa won by resignation"]

1. b3 {[%clk 0:02:59.4]} 1... b6 {[%clk 0:02:55.4]} 2. Bb2 {[%clk 0:03:00.3]}
2... Bb7 {[%clk 0:02:55.2]} 3. Nf3 {[%clk 0:03:01.2]} 3... Nf6 {[%clk
0:02:55.5]} 4. Bxf6 {[%clk 0:03:01.2]} 4... exf6 {[%clk 0:02:55.4]} 5. g3 {[%clk
0:03:01.5]} 5... Be7 {[%clk 0:02:52]} 6. Bg2 {[%clk 0:03:01.5]} 6... O-O {[%clk
0:02:52.4]} 7. O-O {[%clk 0:03:02]} 7... c5 {[%clk 0:02:53]} 8. c4 {[%clk
0:02:59.7]} 8... d5 {[%clk 0:02:52.8]} 9. Nh4 {[%clk 0:02:59.8]} 9... Na6 {[%clk
0:02:51.8]} 10. Nc3 {[%clk 0:02:58.7]} 10... Nc7 {[%clk 0:02:49.2]} 11. Nf5
{[%clk 0:02:58.7]} 11... Rb8 {[%clk 0:02:47.6]} 12. cxd5 {[%clk 0:02:50.6]}
12... Re8 {[%clk 0:02:43.6]} 13. Nxe7+ {[%clk 0:02:40.6]} 13... Qxe7 {[%clk
0:02:42.4]} 14. e4 {[%clk 0:02:40.6]} 14... Rbd8 {[%clk 0:02:41.1]} 15. d3
{[%clk 0:02:37.7]} 15... Qe5 {[%clk 0:02:36.7]} 16. Rc1 {[%clk 0:02:36.1]} 16...
f5 {[%clk 0:02:35]} 17. Kh1 {[%clk 0:02:28.1]} 17... Qd4 {[%clk 0:02:25.6]} 18.
Ne2 {[%clk 0:02:24.4]} 18... Qb4 {[%clk 0:02:08.9]} 19. Rc4 {[%clk 0:02:18.2]}
19... Qa5 {[%clk 0:02:05.4]} 20. Ra4 {[%clk 0:02:12.3]} 20... Qb5 {[%clk
0:02:05.2]} 21. Nc3 {[%clk 0:02:12.9]} 21... Qd7 {[%clk 0:02:04]} 22. Rxa7
{[%clk 0:02:11.6]} 22... Bc8 {[%clk 0:02:03.3]} 23. a4 {[%clk 0:02:01.9]} 23...
Qd6 {[%clk 0:02:00]} 24. Qf3 {[%clk 0:01:53]} 24... g6 {[%clk 0:01:53.5]} 25. h4
{[%clk 0:01:40.9]} 25... Qe5 {[%clk 0:01:51.8]} 26. Rc1 {[%clk 0:01:28.5]} 26...
Na6 {[%clk 0:01:51.2]} 27. h5 {[%clk 0:01:15.4]} 27... Nb4 {[%clk 0:01:47.7]}
28. h6 {[%clk 0:00:48.1]} 28... Qd4 {[%clk 0:01:40.3]} 29. Bf1 {[%clk
0:00:37.7]} 29... Qf6 {[%clk 0:01:26.3]} 30. Nb5 {[%clk 0:00:31.6]} 30... Qg5
{[%clk 0:01:24]} 31. Qf4 {[%clk 0:00:26.3]} 31... Qxf4 {[%clk 0:01:16.2]} 32.
gxf4 {[%clk 0:00:27.2]} 32... fxe4 {[%clk 0:01:16.5]} 33. dxe4 {[%clk
0:00:27.4]} 33... Rxe4 {[%clk 0:01:16.7]} 34. Bc4 {[%clk 0:00:27.9]} 34... Nxd5
{[%clk 0:01:09.8]} 35. Rd1 {[%clk 0:00:25.6]} 35... Be6 {[%clk 0:01:08.1]} 36.
Bxd5 {[%clk 0:00:22.6]} 36... Rxf4 {[%clk 0:00:54.3]} 37. Kg1 {[%clk 0:00:16.2]}
37... Rg4+ {[%clk 0:00:51.2]} 38. Kf1 {[%clk 0:00:14.8]} 38... Rh4 {[%clk
0:00:49.4]} 39. Ke2 {[%clk 0:00:11.9]} 39... Bg4+ {[%clk 0:00:36.8]} 40. f3
{[%clk 0:00:11.8]} 40... Rh2+ {[%clk 0:00:25.9]} 41. Ke3 {[%clk 0:00:11.9]}
41... Re8+ {[%clk 0:00:22.2]} 42. Kf4 {[%clk 0:00:12.1]} 42... Be6 {[%clk
0:00:20.4]} 43. Bxe6 {[%clk 0:00:12.2]} 43... fxe6 {[%clk 0:00:21.3]} 44. Rdd7
{[%clk 0:00:12.4]} 44... Rh4+ {[%clk 0:00:19.5]} 45. Kg3 {[%clk 0:00:12.4]}
45... Rxh6 {[%clk 0:00:19.6]} 46. Rg7+ {[%clk 0:00:12.5]} 46... Kh8 {[%clk
0:00:19.7]} 47. Nd6 {[%clk 0:00:13]} 47... Rf8 {[%clk 0:00:18.7]} 48. Rgf7
{[%clk 0:00:11.8]} 48... Rd8 {[%clk 0:00:16]} 49. Rfd7 {[%clk 0:00:11.9]} 49...
Rxd7 {[%clk 0:00:13.8]} 50. Rxd7 {[%clk 0:00:12.8]} 50... Rh1 {[%clk 0:00:12.9]}
51. Nc8 {[%clk 0:00:11.6]} 51... Rb1 {[%clk 0:00:12.9]} 52. Nxb6 {[%clk
0:00:11]} 52... Rxb3 {[%clk 0:00:12.8]} 53. a5 {[%clk 0:00:10.3]} 53... Ra3
{[%clk 0:00:12.8]} 54. Ra7 {[%clk 0:00:10.6]} 54... h5 {[%clk 0:00:10.8]} 55.
Kh4 {[%clk 0:00:10.1]} 55... c4 {[%clk 0:00:08.2]} 56. Nxc4 {[%clk 0:00:09.8]}
56... Ra4 {[%clk 0:00:08.4]} 57. Rc7 {[%clk 0:00:10.2]} 1-0

[Event "Late-Titled-Tuesday-Blitz-July-09-2024"]
[Site "Chess.com"]
[Date "2024.07.09"]
[Round "7"]
[White "dawid498"]
[Black "cthulhuuu"]
[Result "0-1"]
[WhiteElo "2651"]
[BlackElo "2480"]
[TimeControl "180+1"]
[EndTime "15:17:20 PDT"]
[Termination "cthulhuuu won on time"]

1. e4 {[%clk 0:03:00.9]} 1... d6 {[%clk 0:02:59.2]} 2. d4 {[%clk 0:02:57.9]}
2... Nf6 {[%clk 0:02:59.6]} 3. Nd2 {[%clk 0:02:58]} 3... c6 {[%clk 0:02:57.7]}
4. Ngf3 {[%clk 0:02:57.1]} 4... Bg4 {[%clk 0:02:56.1]} 5. c3 {[%clk 0:02:56.8]}
5... e6 {[%clk 0:02:53.5]} 6. Bd3 {[%clk 0:02:50.9]} 6... d5 {[%clk 0:02:53.6]}
7. O-O {[%clk 0:02:48.7]} 7... Be7 {[%clk 0:02:49.8]} 8. exd5 {[%clk 0:01:31.2]}
8... cxd5 {[%clk 0:02:45.9]} 9. Qb3 {[%clk 0:01:29.7]} 9... Bxf3 {[%clk
0:02:33.9]} 10. Qxb7 {[%clk 0:01:00.4]} 10... Bxg2 {[%clk 0:02:34.1]} 11. Qxa8
{[%clk 0:00:55]} 11... Bxf1 {[%clk 0:02:33.2]} 12. Nxf1 {[%clk 0:00:43.9]} 12...
Qc7 {[%clk 0:02:29.3]} 13. Ba6 {[%clk 0:00:19.8]} 13... O-O {[%clk 0:01:57.6]}
14. Qb7 {[%clk 0:00:19.9]} 14... Qxb7 {[%clk 0:01:57.9]} 15. Bxb7 {[%clk
0:00:20.8]} 15... Rd8 {[%clk 0:01:58]} 16. Bf4 {[%clk 0:00:18.4]} 16... Bd6
{[%clk 0:01:54.2]} 17. Bxd6 {[%clk 0:00:03.9]} 17... Rxd6 {[%clk 0:01:55.1]} 18.
Ne3 {[%clk 0:00:03.6]} 18... Rb6 {[%clk 0:01:51.2]} 19. Ba8 {[%clk 0:00:03]}
19... Ne8 {[%clk 0:01:51.5]} 20. c4 {[%clk 0:00:02.8]} 20... Nc7 {[%clk
0:01:46.9]} 21. cxd5 {[%clk 0:00:02.9]} 21... Nxa8 {[%clk 0:01:46.9]} 22. Rc1
{[%clk 0:00:03]} 22... Kf8 {[%clk 0:01:29.1]} 23. Rc8+ {[%clk 0:00:03.5]} 23...
Ke7 {[%clk 0:01:29.6]} 24. Nc4 {[%clk 0:00:01.1]} 24... Rb4 {[%clk 0:01:20.1]}
25. b3 {[%clk 0:00:01.4]} 25... exd5 {[%clk 0:01:05.2]} 26. Ne3 {[%clk
0:00:01.6]} 26... Kd7 {[%clk 0:00:53.3]} 27. Rg8 {[%clk 0:00:02]} 27... Nc7
{[%clk 0:00:53.1]} 28. Rxg7 {[%clk 0:00:01.9]} 28... Rxd4 {[%clk 0:00:51.4]} 29.
Rxf7+ {[%clk 0:00:01.7]} 29... Kc6 {[%clk 0:00:50.4]} 30. Rxh7 {[%clk 0:00:02]}
30... Rd2 {[%clk 0:00:45.2]} 31. h4 {[%clk 0:00:02.5]} 31... Nd7 {[%clk
0:00:19.4]} 32. h5 {[%clk 0:00:03]} 32... Ne5 {[%clk 0:00:10]} 33. h6 {[%clk
0:00:02.7]} 33... d4 {[%clk 0:00:09.9]} 34. Nf5 {[%clk 0:00:02.3]} 34... d3
{[%clk 0:00:04]} 35. Re7 {[%clk 0:00:02.9]} 35... Nf3+ {[%clk 0:00:03.7]} 36.
Kg2 {[%clk 0:00:03.4]} 36... Ng5 {[%clk 0:00:04.1]} 37. h7 {[%clk 0:00:02.7]}
37... Nxh7 {[%clk 0:00:04.4]} 38. Rxh7 {[%clk 0:00:03.6]} 38... Rxa2 {[%clk
0:00:05.3]} 39. Rh6+ {[%clk 0:00:03.7]} 39... Kb7 {[%clk 0:00:04.1]} 40. Nd6+
{[%clk 0:00:03.4]} 40... Kc6 {[%clk 0:00:03.8]} 41. Nc4+ {[%clk 0:00:03.5]}
41... Kc5 {[%clk 0:00:03.7]} 42. Rd6 {[%clk 0:00:03.2]} 42... Nd5 {[%clk
0:00:03.5]} 43. Rd8 {[%clk 0:00:01.2]} 43... d2 {[%clk 0:00:03.5]} 44. Rc8+
{[%clk 0:00:01.1]} 44... Kd4 {[%clk 0:00:04]} 45. Ne3 {[%clk 0:00:01.6]} 45...
Nxe3+ {[%clk 0:00:04]} 46. fxe3+ {[%clk 0:00:02.3]} 46... Kxe3 {[%clk
0:00:04.6]} 47. Re8+ {[%clk 0:00:02.7]} 47... Kd3 {[%clk 0:00:04.9]} 48. Rd8+
{[%clk 0:00:03.1]} 48... Kc2 {[%clk 0:00:05.3]} 49. Kf3 {[%clk 0:00:04]} 49...
d1=Q+ {[%clk 0:00:05.2]} 50. Rxd1 {[%clk 0:00:04.8]} 50... Kxd1 {[%clk
0:00:06.1]} 0-1

[Event "Late-Titled-Tuesday-Blitz-July-09-2024"]
[Site "Chess.com"]
[Date "2024.07.09"]
[Round "7"]
[White "Bauman_Guy"]
[Black "Vladimir_2020"]
[Result "1/2-1/2"]
[WhiteElo "2918"]
[BlackElo "2780"]
[TimeControl "180+1"]
[EndTime "15:17:21 PDT"]
[Termination "Game drawn by repetition"]

1. e4 {[%clk 0:03:00.9]} 1... c5 {[%clk 0:02:58.9]} 2. Nf3 {[%clk 0:03:01.1]}
2... e6 {[%clk 0:02:58.9]} 3. d4 {[%clk 0:03:01.5]} 3... cxd4 {[%clk 0:02:58.9]}
4. Nxd4 {[%clk 0:03:02.4]} 4... a6 {[%clk 0:02:59]} 5. Bd3 {[%clk 0:03:02.1]}
5... Qc7 {[%clk 0:02:58.6]} 6. O-O {[%clk 0:03:01.8]} 6... Nf6 {[%clk
0:02:57.5]} 7. Qe2 {[%clk 0:03:01.8]} 7... d6 {[%clk 0:02:57.2]} 8. c4 {[%clk
0:03:02.3]} 8... Be7 {[%clk 0:02:56.6]} 9. Nc3 {[%clk 0:03:02.3]} 9... Nbd7
{[%clk 0:02:54.3]} 10. b3 {[%clk 0:03:02.2]} 10... b6 {[%clk 0:02:51.7]} 11. Bb2
{[%clk 0:03:02.1]} 11... Bb7 {[%clk 0:02:51.9]} 12. Kh1 {[%clk 0:03:02.6]} 12...
O-O {[%clk 0:02:51.5]} 13. Rae1 {[%clk 0:03:03.2]} 13... Rfe8 {[%clk 0:02:04.3]}
14. f4 {[%clk 0:03:01.9]} 14... e5 {[%clk 0:02:01.8]} 15. Nf5 {[%clk 0:02:59.7]}
15... Bf8 {[%clk 0:02:00.6]} 16. Nd5 {[%clk 0:02:34.8]} 16... Bxd5 {[%clk
0:01:57.6]} 17. exd5 {[%clk 0:02:34.9]} 17... exf4 {[%clk 0:01:38]} 18. Qd2
{[%clk 0:02:16]} 18... Ne5 {[%clk 0:01:27.7]} 19. Rxf4 {[%clk 0:01:53.9]} 19...
g6 {[%clk 0:01:18.4]} 20. Ref1 {[%clk 0:01:37.6]} 20... Nh5 {[%clk 0:00:56]} 21.
Rh4 {[%clk 0:01:16.2]} 21... Qd8 {[%clk 0:00:50.2]} 22. Rxh5 {[%clk 0:00:58.2]}
22... gxh5 {[%clk 0:00:49.7]} 23. Nh6+ {[%clk 0:00:58.5]} 23... Bxh6 {[%clk
0:00:41.6]} 24. Qxh6 {[%clk 0:00:59.4]} 24... f5 {[%clk 0:00:41.6]} 25. Bxf5
{[%clk 0:00:52.8]} 25... Ra7 {[%clk 0:00:40.6]} 26. Be6+ {[%clk 0:00:45.3]}
26... Kh8 {[%clk 0:00:39.9]} 27. Rf5 {[%clk 0:00:20.4]} 27... Rg7 {[%clk
0:00:38.6]} 28. Rxe5 {[%clk 0:00:19.3]} 28... dxe5 {[%clk 0:00:38.2]} 29. Bxe5
{[%clk 0:00:19.8]} 29... Qe7 {[%clk 0:00:33.3]} 30. g3 {[%clk 0:00:15.1]} 30...
Qf8 {[%clk 0:00:23.3]} 31. Kg2 {[%clk 0:00:12.7]} 31... Rd8 {[%clk 0:00:21.2]}
32. b4 {[%clk 0:00:10.6]} 32... a5 {[%clk 0:00:13.9]} 33. c5 {[%clk 0:00:10.3]}
33... bxc5 {[%clk 0:00:13.6]} 34. bxc5 {[%clk 0:00:10.5]} 34... Rb8 {[%clk
0:00:11.4]} 35. Qxg7+ {[%clk 0:00:02.9]} 35... Qxg7 {[%clk 0:00:10.7]} 36. Bxg7+
{[%clk 0:00:03.8]} 36... Kxg7 {[%clk 0:00:10.9]} 37. d6 {[%clk 0:00:02.5]} 37...
Kf6 {[%clk 0:00:09.5]} 38. Bh3 {[%clk 0:00:02.1]} 38... Ke5 {[%clk 0:00:09.3]}
39. d7 {[%clk 0:00:02]} 39... Kd5 {[%clk 0:00:08.5]} 40. Bf5 {[%clk 0:00:02.3]}
40... Kxc5 {[%clk 0:00:08.4]} 41. Bxh7 {[%clk 0:00:02.2]} 41... Kd6 {[%clk
0:00:08.6]} 42. Bf5 {[%clk 0:00:02.8]} 42... Ke7 {[%clk 0:00:08.6]} 43. Kf3
{[%clk 0:00:01.5]} 43... Rb4 {[%clk 0:00:08.5]} 44. h3 {[%clk 0:00:01.3]} 44...
Ra4 {[%clk 0:00:08.5]} 45. g4 {[%clk 0:00:01.9]} 45... Ra3+ {[%clk 0:00:07.9]}
46. Kf4 {[%clk 0:00:01.7]} 46... Rxh3 {[%clk 0:00:07.2]} 47. g5 {[%clk
0:00:02.2]} 47... Rh2 {[%clk 0:00:07]} 48. g6 {[%clk 0:00:02.6]} 48... Rxa2
{[%clk 0:00:06.2]} 49. Kg5 {[%clk 0:00:03]} 49... Rg2+ {[%clk 0:00:05.5]} 50.
Kxh5 {[%clk 0:00:03.5]} 50... a4 {[%clk 0:00:05.5]} 51. Kh6 {[%clk 0:00:03.2]}
51... a3 {[%clk 0:00:05.7]} 52. Bb1 {[%clk 0:00:03.8]} 52... Kxd7 {[%clk
0:00:03.7]} 53. g7 {[%clk 0:00:04.2]} 53... Ke7 {[%clk 0:00:03.6]} 54. Kh7
{[%clk 0:00:03.4]} 54... Rh2+ {[%clk 0:00:03.4]} 55. Kg6 {[%clk 0:00:02.9]}
55... Rg2+ {[%clk 0:00:03.4]} 56. Kh7 {[%clk 0:00:03.4]} 56... Rh2+ {[%clk
0:00:03.6]} 57. Kg6 {[%clk 0:00:03.6]} 57... Rg2+ {[%clk 0:00:04]} 58. Kh7
{[%clk 0:00:04.2]} 1/2-1/2